bitfinex/quotes_SOLUSD_20220114
["timestamp","ask_amount","ask_price","bid_price","bid_amount"]
[1642158380318,10.7255,143.38,143.28,29.20820964]
[1642158380719,10.7255,143.38,143.27,2.79]
[1642158380920,10.4696,143.32,143.26,3.76198014]
[1642158381521,2.791,143.31,143.23,352.81823124]
[1642158381720,16.251,143.35,143.23,352.81823124]
[1642158381721,1.70077588,143.32,143.23,352.81823124]
[1642158381924,2.791,143.31,143.24,3.99734467]
[1642158382360,10.4724,143.29,143.24,3.99734467]
[1642158382524,2.791,143.28,143.24,3.99734467]
[1642158383123,2.791,143.28,143.2,5.64913693]
[1642158383323,2.791,143.28,143.18,30.65931304]
[1642158383524,10.4761,143.26,143.18,30.65931304]
[1642158383724,2.791,143.25,143.18,30.65931304]
[1642158383924,0.26,143.27,143.18,30.65931304]
[1642158384524,10.4737,143.25,143.18,30.65931304]
[1642158385028,10.7337,143.25,143.18,30.65931304]
[1642158385927,13.5267,143.25,143.19,3.99886878]
[1642158387334,13.5267,143.25,143.18,30.65931304]
[1642158387532,13.5267,143.25,143.14,46.007]
[1642158388131,13.5267,143.25,143.13,5.64913693]
[1642158388331,21.8767,143.25,143.13,5.64913693]
[1642158388532,23.57747588,143.25,143.13,5.64913693]
[1642158389132,23.57747588,143.25,143.11,4.00010673]
[1642158390159,23.57747588,143.25,143.11,27.72873248]
[1642158390359,23.31747588,143.25,143.11,27.72873248]
[1642158390562,23.31747588,143.25,143.11,23.72862575]
[1642158391560,23.31747588,143.25,143.12,4.00010673]
[1642158391961,23.31747588,143.25,143.12,4.25010673]
[1642158392360,21.6167,143.25,143.12,4.25010673]
[1642158392665,21.6167,143.25,143.13,2.793]
[1642158393063,21.6167,143.25,143.13,13.52]
[1642158393262,21.6167,143.25,143.13,17.52010673]
[1642158393462,21.8767,143.25,143.13,14.72710673]
[1642158393763,21.8767,143.25,143.13,4.25010673]
[1642158393963,23.57747588,143.25,143.13,4.25010673]
[1642158394164,21.8767,143.25,143.13,4.25010673]
[1642158394363,18.8237,143.25,143.14,4.00010673]
[1642158394563,10.4737,143.25,143.14,4.5626247]
[1642158394863,2.793,143.34,143.19,0.30178671]
[1642158395063,27.0174,143.35,143.2,23.10912374]
[1642158395265,4.49177588,143.35,143.21,18.8214]
[1642158395463,8.35,143.36,143.21,19.0714]
[1642158395664,34.9028,143.33,143.21,19.0714]
[1642158395864,10.4704,143.3,143.21,19.0714]
[1642158396165,10.4704,143.3,143.21,8.6]
[1642158396364,10.4704,143.3,143.22,2.791]
[1642158396866,10.4704,143.3,143.18,2.791]
[1642158397165,10.4763,143.24,143.18,2.791]
[1642158397371,10.4763,143.24,143.14,11.143]
[1642158397766,10.4763,143.24,143.15,10.4763]
[1642158397964,10.7363,143.24,143.15,41.88899506]
[1642158398363,10.7363,143.24,143.15,31.66269506]
[1642158398564,10.7363,143.24,143.15,31.41269506]
[1642158398766,10.4781,143.2,143.13,355.20068589]
[1642158398964,10.4781,143.2,143.13,349.55154896]
[1642158399767,10.4781,143.2,143.14,29.22454513]
[1642158400569,10.4767,143.21,143.14,29.47454513]
[1642158400869,10.4767,143.21,143.12,2.793]
[1642158401069,10.4767,143.21,143.12,3.043]
[1642158401267,10.4767,143.21,143.12,2.793]
[1642158401669,13.2697,143.21,143.12,2.793]
[1642158401867,1.70077588,143.2,143.12,2.793]
[1642158402068,10.4825,143.16,143.12,2.793]
[1642158402270,10.4825,143.16,143.09,5.64913693]
[1642158402471,10.4825,143.16,143.09,16.12993693]
[1642158402672,2.794,143.19,143.09,16.12993693]
[1642158402878,2.794,143.21,143.1,11.144]
[1642158403072,2.794,143.24,143.1,17.394]
[1642158403273,10.4775,143.2,143.1,17.394]
[1642158403477,34.9265,143.23,143.13,10.4778]
[1642158403674,2.793,143.26,143.14,29.54981944]
[1642158403874,2.793,143.26,143.14,32.34281944]
[1642158404073,2.793,143.26,143.14,32.59281944]
[1642158404273,11.143,143.26,143.14,32.59281944]
[1642158404475,11.143,143.26,143.14,38.59281944]
[1642158404673,10.4754,143.23,143.14,49.06941944]
[1642158404876,10.4754,143.23,143.15,4.00077444]
[1642158405074,10.4754,143.23,143.15,10.25077444]
[1642158405481,10.7354,143.23,143.15,4.25077444]
[1642158405873,10.7354,143.23,143.15,4.00077444]
[1642158406075,10.7354,143.23,143.1,8.35]
[1642158406076,12.43617588,143.23,143.11,2.793]
[1642158406374,10.4797,143.18,143.12,6.0]
[1642158406576,10.4797,143.18,143.09,8.793]
[1642158406775,10.4797,143.18,143.08,11.144]
[1642158406981,10.4797,143.18,143.12,4.0003975]
[1642158407177,2.794,143.17,143.12,4.0003975]
[1642158407378,10.4817,143.15,143.12,4.0003975]
[1642158407981,10.7417,143.15,143.12,4.0003975]
[1642158408178,10.7417,143.15,143.1,4.0003975]
[1642158409380,10.7417,143.15,143.05,72.634]
[1642158409579,10.7417,143.15,143.07,26.89773243]
[1642158409879,10.7417,143.15,143.05,78.634]
[1642158409880,1.70077588,143.14,143.05,2.794]
[1642158410079,10.4853,143.1,143.05,2.794]
[1642158410380,2.795,143.13,143.05,2.794]
[1642158410583,37.7452,143.14,143.05,2.794]
[1642158410781,37.7452,143.14,143.05,32.08989039]
[1642158411179,10.4842,143.11,143.05,32.08989039]
[1642158411380,10.4842,143.11,143.05,29.29589039]
[1642158412481,10.4842,143.11,143.05,29.54589039]
[1642158412879,10.4842,143.11,143.05,29.29589039]
[1642158413880,10.7442,143.11,143.05,29.29589039]
[1642158414780,10.7442,143.11,143.05,29.54589039]
[1642158415183,10.7442,143.11,143.05,0.25]
[1642158415382,10.7442,143.11,143.02,2.795]
[1642158415584,13.5392,143.11,143.02,3.045]
[1642158415787,13.5392,143.11,143.02,9.045]
[1642158415983,8.35,143.1,143.02,9.045]
[1642158416184,10.4879,143.06,143.02,38.86928472]
[1642158416383,10.4879,143.06,143.03,4.002727]
[1642158416585,10.4879,143.06,143.04,6.06439993]
[1642158416985,10.4879,143.06,143.03,4.002727]
[1642158417387,10.4879,143.06,142.98,8.00545401]
[1642158417388,47.84577588,143.05,142.99,5.64913693]
[1642158417585,10.4929,143.02,142.99,5.64913693]
[1642158418389,48.0,143.0,142.93,12.21222821]
[1642158418588,8.35,142.99,142.93,18.21855726]
[1642158418789,8.35,142.99,142.93,8.80332905]
[1642158418790,34.9902,142.97,142.93,8.80332905]
[1642158418987,43.3402,142.97,142.93,6.00632905]
[1642158419186,8.35,142.97,142.93,6.00632905]
[1642158419386,8.35,142.97,142.94,29.54877365]
[1642158420288,11.148,143.01,142.94,29.54877365]
[1642158420487,8.35,143.01,142.94,29.54877365]
[1642158421091,10.4937,142.99,142.87,16.81276779]
[1642158421292,10.4937,142.99,142.87,22.81276779]
[1642158421787,10.4937,142.99,142.87,24.33962763]
[1642158421988,10.4937,142.99,142.88,69.84]
[1642158422187,10.4937,142.99,142.89,26.83380538]
[1642158422390,10.4937,142.99,142.9,10.4939]
[1642158422587,10.4922,143.0,142.91,2.798]
[1642158422787,8.35,143.04,142.91,2.798]
[1642158422988,2.797,143.03,142.91,10.264]
[1642158423188,2.797,143.06,142.92,69.84]
[1642158423388,43.3184,143.06,142.93,13.2887]
[1642158423621,43.3184,143.06,142.93,13.5387]
[1642158424191,2.797,143.09,142.93,23.89401272]
[1642158424389,8.35,143.13,142.93,38.50401272]
[1642158424589,8.35,143.13,142.95,24.30118682]
[1642158424788,8.35,143.13,143.04,24.62078704]
[1642158424989,8.35,143.17,143.04,33.16178704]
[1642158425189,2.795,143.16,143.04,33.16178704]
[1642158425388,10.4831,143.14,143.04,33.16178704]
[1642158425588,2.795,143.13,143.04,33.16178704]
[1642158425787,2.795,143.13,143.04,43.64518704]
[1642158425989,2.795,143.14,143.04,43.64518704]
[1642158426588,10.484,143.13,143.04,43.39518704]
[1642158426788,10.484,143.13,143.04,32.91178704]
[1642158426991,2.795,143.12,143.04,24.62078704]
[1642158427188,2.795,143.14,143.04,24.62078704]
[1642158427688,10.4866,143.09,142.99,2.795]
[1642158427890,10.05077588,143.13,142.97,2.795]
[1642158427891,2.795,143.08,142.97,2.795]
[1642158428089,1.70077588,143.08,142.97,0.25]
[1642158428295,1.70077588,143.08,142.97,6.0]
[1642158428691,36.66187588,143.1,142.98,31.03992871]
[1642158428890,10.4888,143.06,142.98,33.83492871]
[1642158429093,10.4888,143.06,142.98,37.03992871]
[1642158429490,12.18957588,143.06,142.98,31.03992871]
[1642158429798,10.4888,143.06,142.98,31.03992871]
[1642158430395,10.05077588,143.05,142.98,31.03992871]
[1642158430593,20.54057588,143.05,142.98,31.03992871]
[1642158430796,2.795,143.07,142.98,31.03992871]
[1642158430997,1.70077588,143.08,142.98,31.03992871]
[1642158431202,1.70077588,143.06,142.98,31.03992871]
[1642158431399,2.795,143.05,142.98,31.03992871]
[1642158431595,8.35,143.04,142.98,31.03992871]
[1642158431895,8.35,143.04,142.97,2.795]
[1642158432096,4.49777588,143.03,142.97,2.795]
[1642158432496,13.2881,143.03,142.97,2.795]
[1642158432695,13.2881,143.03,142.97,25.17719213]
[1642158432896,10.4911,143.03,142.97,25.17719213]
[1642158433396,10.4911,143.03,142.92,2.797]
[1642158433596,12.19187588,143.03,142.92,19.5393]
[1642158433801,20.54187588,143.03,142.92,13.5393]
[1642158433998,10.4931,143.01,142.92,10.7423]
[1642158434399,10.4931,143.01,142.93,26.89365293]
[1642158434601,2.797,143.02,142.93,27.14365293]
[1642158434803,8.35,143.03,142.93,43.63525293]
[1642158435000,1.70077588,143.01,142.89,2.797]
[1642158435203,11.148,143.0,142.89,2.797]
[1642158435700,1.70077588,142.99,142.89,2.797]
[1642158435901,11.148,142.98,142.9,28.98127804]
[1642158436099,10.4957,142.97,142.9,28.98127804]
[1642158436900,10.4957,142.97,142.84,24.881]
[1642158436901,1.70077588,142.9,142.81,6.00632905]
[1642158437101,3.65408804,142.85,142.81,6.00632905]
[1642158437303,10.5081,142.83,142.76,21.07069419]
[1642158437502,11.151,142.82,142.76,21.07069419]
[1642158437702,8.35,142.81,142.76,21.07069419]
[1642158437903,4.50177588,142.84,142.76,21.07069419]
[1642158437904,8.35,142.8,142.76,21.07069419]
[1642158438201,8.35,142.79,142.76,21.07069419]
[1642158438402,8.35,142.81,142.78,26.06800618]
[1642158438627,8.35,142.82,142.78,26.06800618]
[1642158439028,8.35,142.82,142.76,21.07069419]
[1642158439029,8.35,142.82,142.73,2.801]
[1642158439228,8.35,142.82,142.7,2.801]
[1642158439428,8.35,142.82,142.7,13.307]
[1642158439429,18.856,142.82,142.7,13.307]
[1642158440028,18.856,142.82,142.71,26.28055731]
[1642158440429,18.856,142.82,142.71,32.28055731]
[1642158440829,18.856,142.82,142.71,32.53055731]
[1642158440830,8.35,142.82,142.71,32.53055731]
[1642158441333,8.35,142.82,142.71,32.28055731]
[1642158442331,18.8558,142.82,142.71,32.28055731]
[1642158442532,18.8558,142.82,142.71,26.53055731]
[1642158443331,18.8558,142.82,142.71,26.28055731]
[1642158443332,10.5058,142.82,142.71,26.28055731]
[1642158443533,11.151,142.81,142.7,2.801]
[1642158443834,10.51,142.77,142.7,6.0]
[1642158444034,10.51,142.77,142.67,6.0]
[1642158444231,10.51,142.77,142.64,2.802]
[1642158444232,18.86,142.77,142.64,2.802]
[1642158444431,18.86,142.77,142.65,30.74317437]
[1642158444632,18.86,142.77,142.65,36.74950342]
[1642158444832,2.802,142.76,142.65,36.74950342]
[1642158445033,10.5118,142.74,142.65,36.74950342]
[1642158445433,8.35,142.77,142.65,36.74950342]
[1642158445633,2.803,142.79,142.65,42.66250342]
[1642158445833,8.35,142.82,142.68,10.5082]
[1642158446034,8.35,142.82,142.69,2.802]
[1642158446442,8.35,142.82,142.69,9.052]
[1642158446640,2.802,142.81,142.69,9.052]
[1642158446840,2.802,142.81,142.69,2.802]
[1642158447041,18.8574,142.8,142.67,2.802]
[1642158447241,2.802,142.79,142.66,50.3035]
[1642158447438,8.35,142.78,142.66,3.052]
[1642158447639,2.802,142.77,142.65,30.74317437]
[1642158447841,43.3947,142.76,142.63,2.802]
[1642158448041,2.803,142.75,142.63,2.802]
[1642158448239,8.35,142.74,142.63,2.802]
[1642158448439,10.5155,142.69,142.62,6.00632905]
[1642158448838,10.5155,142.69,142.6,23.8823]
[1642158448839,10.5155,142.69,142.61,23.85838724]
[1642158449241,18.8655,142.69,142.61,23.85838724]
[1642158449542,21.6685,142.69,142.55,2.803]
[1642158450542,21.6685,142.69,142.56,22.62534645]
[1642158450945,23.36927588,142.69,142.55,2.803]
[1642158451545,23.36927588,142.69,142.47,0.35081545]
[1642158451546,31.29217328,142.69,142.47,0.35081545]
[1642158451747,157.48234677,142.69,142.47,0.35081545]
[1642158451945,104.42,142.67,142.47,0.35081545]
[1642158452142,11.155,142.66,142.47,0.35081545]
[1642158452442,10.5266,142.57,142.47,0.35081545]
[1642158452642,35.0885,142.58,142.47,0.35081545]
[1642158452643,2.806,142.56,142.47,0.35081545]
[1642158452845,2.806,142.57,142.48,28.07749717]
[1642158453046,43.4385,142.58,142.48,28.07749717]
[1642158453246,8.35,142.58,142.48,36.88349717]
[1642158453445,8.35,142.61,142.48,36.88349717]
[1642158453648,8.35,142.61,142.49,1.54340397]
[1642158453847,8.35,142.61,142.48,36.88349717]
[1642158454052,8.35,142.61,142.51,10.5222]
[1642158454248,8.35,142.61,142.52,2.805]
[1642158454446,18.8712,142.61,142.52,0.25]
[1642158454647,18.8712,142.61,142.5,2.805]
[1642158454845,18.8712,142.61,142.5,8.805]
[1642158455048,18.8712,142.61,142.5,19.328]
[1642158455049,2.805,142.6,142.5,19.328]
[1642158455850,8.35,142.64,142.5,19.328]
[1642158456049,8.35,142.64,142.5,19.578]
[1642158456250,2.805,142.63,142.5,19.578]
[1642158457155,8.35,142.64,142.5,19.578]
[1642158457352,8.35,142.68,142.5,25.709]
[1642158457751,8.35,142.68,142.5,35.59978051]
[1642158458153,12.85577588,142.71,142.5,35.59978051]
[1642158458454,47.90527588,142.74,142.51,8.42046]
[1642158458657,47.90527588,142.74,142.63,27.84272662]
[1642158458853,12.85377588,142.74,142.63,34.82872662]
[1642158459056,11.153,142.74,142.63,34.82872662]
[1642158459353,10.5136,142.73,142.63,6.986]
[1642158459553,4.50377588,142.74,142.63,6.986]
[1642158459554,80.993,142.72,142.63,6.986]
[1642158459754,8.35,142.71,142.53,107.2846]
[1642158459954,2.803,142.7,142.53,64.735]
[1642158460154,8.35,142.69,142.53,23.6747]
[1642158460357,13.3213,142.68,142.53,24.89609786]
[1642158460557,13.3213,142.68,142.53,25.14609786]
[1642158460558,8.35,142.67,142.53,25.14609786]
[1642158460756,2.805,142.66,142.54,10.5202]
[1642158460955,2.805,142.66,142.54,10.7702]
[1642158461154,2.805,142.66,142.54,80.6102]
[1642158461557,2.805,142.66,142.54,10.7702]
[1642158461954,4.50577588,142.66,142.54,10.7702]
[1642158462154,2.805,142.66,142.54,10.7702]
[1642158462756,10.05077588,142.7,142.55,2.805]
[1642158462757,2.805,142.69,142.55,2.805]
[1642158462956,8.35,142.7,142.55,2.805]
[1642158462957,8.35,142.7,142.59,10.517]
[1642158463156,2.803,142.69,142.6,28.08059559]
[1642158463358,8.35,142.68,142.6,28.08059559]
[1642158463657,10.5191,142.65,142.6,28.08059559]
[1642158464460,2.803,142.67,142.54,2.803]
[1642158464658,2.803,142.67,142.53,2.803]
[1642158464959,2.803,142.67,142.53,9.053]
[1642158465358,10.5178,142.66,142.57,10.5184]
[1642158465658,10.5178,142.66,142.57,10.7684]
[1642158465858,2.803,142.67,142.57,10.7684]
[1642158466059,2.803,142.68,142.57,10.7684]
[1642158466264,2.803,142.69,142.57,10.7684]
[1642158466464,2.803,142.69,142.58,69.84]
[1642158466663,1.70077588,142.73,142.63,10.5136]
[1642158466961,2.803,142.72,142.64,29.49215756]
[1642158467161,2.803,142.74,142.64,29.49215756]
[1642158467361,8.35,142.75,142.64,29.74215756]
[1642158467563,10.5117,142.74,142.65,10.5126]
[1642158467762,2.803,142.77,142.65,10.5126]
[1642158467965,2.803,142.77,142.66,2.802]
[1642158468163,2.803,142.77,142.65,3.052]
[1642158468363,1.70077588,142.76,142.65,2.802]
[1642158468565,2.802,142.75,142.64,29.49215756]
[1642158468773,13.313,142.75,142.64,29.49215756]
[1642158468968,1.70077588,142.74,142.64,29.49215756]
[1642158469169,2.803,142.73,142.64,29.49215756]
[1642158469368,2.803,142.73,142.64,29.74215756]
[1642158469568,2.803,142.77,142.65,2.803]
[1642158469767,2.803,142.77,142.64,29.49215756]
[1642158469967,10.5129,142.73,142.62,37.8417]
[1642158470169,10.5129,142.73,142.62,2.802]
[1642158470371,4.50377588,142.72,142.62,2.802]
[1642158470972,10.5176,142.67,142.62,2.802]
[1642158472392,13.3206,142.67,142.62,2.802]
[1642158473400,10.5176,142.67,142.59,29.89962561]
[1642158473602,10.5176,142.67,142.59,30.14962561]
[1642158473801,10.5176,142.67,142.59,29.89962561]
[1642158474200,10.5176,142.67,142.56,23.4905]
[1642158474403,13.3206,142.67,142.56,23.4905]
[1642158475604,21.6706,142.67,142.56,23.4905]
[1642158475804,21.6706,142.67,142.55,2.803]
[1642158476002,1.70077588,142.66,142.55,2.803]
[1642158476204,10.5233,142.61,142.52,1.95870259]
[1642158476404,10.5233,142.61,142.5,115.5577]
[1642158476405,2.805,142.6,142.5,1.95870259]
[1642158476908,7.328,142.6,142.5,1.95870259]
[1642158477104,2.806,142.59,142.5,1.95870259]
[1642158477305,10.5238,142.58,142.5,1.95870259]
[1642158477506,11.156,142.57,142.5,1.95870259]
[1642158477906,1.70077588,142.56,142.5,1.95870259]
[1642158478206,76.87042795,142.61,142.49,1.95870259]
[1642158478207,10.5291,142.54,142.49,1.95870259]
[1642158479507,10.5291,142.54,142.46,32.52755304]
[1642158479906,10.5257,142.56,142.46,32.52755304]
[1642158480110,8.35,142.59,142.48,2.806]
[1642158480311,11.156,142.63,142.5,10.5232]
[1642158480510,2.805,142.64,142.52,29.18958534]
[1642158480708,2.805,142.66,142.52,29.18958534]
[1642158480908,2.805,142.68,142.52,29.43958534]
[1642158481108,2.805,142.68,142.52,35.43958534]
[1642158481309,10.5188,142.66,142.55,10.52]
[1642158481509,69.84,142.64,142.48,4.76470259]
[1642158481712,11.155,142.63,142.48,4.76470259]
[1642158481911,8.35,142.62,142.48,4.76470259]
[1642158482114,8.35,142.62,142.53,1.95870259]
[1642158482313,2.805,142.61,142.53,1.95870259]
[1642158482512,10.523,142.6,142.53,1.95870259]
[1642158483111,10.523,142.6,142.5,3.96131802]
[1642158483313,2.806,142.59,142.49,31.99175169]
[1642158483513,10.5258,142.55,142.49,31.99175169]
[1642158483742,10.5258,142.55,142.48,1.95870259]
[1642158483943,2.806,142.54,142.48,1.95870259]
[1642158484144,8.35,142.56,142.48,1.95870259]
[1642158484342,8.35,142.56,142.47,0.35081545]
[1642158484544,10.5261,142.55,142.47,0.35081545]
[1642158484745,10.5261,142.55,142.48,26.30768416]
[1642158485244,10.5261,142.55,142.47,0.35081545]
[1642158485443,10.05077588,142.54,142.47,0.35081545]
[1642158485644,10.5315,142.5,142.47,0.35081545]
[1642158486045,13.3385,142.5,142.47,0.35081545]
[1642158486446,13.3385,142.5,142.47,2.30951804]
[1642158486845,10.5315,142.5,142.47,2.30951804]
[1642158487049,13.3352,142.52,142.48,6.06439993]
[1642158487247,10.5282,142.52,142.48,6.06439993]
[1642158487644,8.35,142.54,142.48,6.06439993]
[1642158487845,35.0892,142.57,142.48,6.06439993]
[1642158487846,2.806,142.56,142.48,6.06439993]
[1642158488044,11.156,142.57,142.49,28.98851036]
[1642158488247,10.5249,142.56,142.49,28.98851036]
[1642158488445,10.5249,142.56,142.48,1.95870259]
[1642158488648,12.85677588,142.57,142.48,1.95870259]
[1642158488649,2.806,142.55,142.48,1.95870259]
[1642158488846,4.50677588,142.56,142.48,1.95870259]
[1642158489047,1.70077588,142.55,142.5,1.95870259]
[1642158489247,11.156,142.54,142.5,1.95870259]
[1642158489447,10.5299,142.52,142.5,1.95870259]
[1642158489649,2.806,142.51,142.5,4.99090256]
[1642158489852,39.60617588,142.53,142.5,4.99090256]
[1642158490051,2.806,142.53,142.48,1.95870259]
[1642158490249,11.156,142.54,142.49,26.99257679]
[1642158490452,8.35,142.54,142.49,26.99257679]
[1642158491257,8.35,142.54,142.49,28.95127938]
[1642158492255,2.806,142.57,142.49,28.95127938]
[1642158492463,8.35,142.58,142.51,1.95870259]
[1642158493256,10.5249,142.57,142.51,1.95870259]
[1642158493457,10.5249,142.57,142.52,1.95870259]
[1642158493959,10.7849,142.57,142.52,1.95870259]
[1642158494157,10.05077588,142.56,142.52,1.95870259]
[1642158494358,2.806,142.55,142.52,1.95870259]
[1642158494658,18.879,142.54,142.51,1.95870259]
[1642158494891,2.806,142.53,142.48,3.96131802]
[1642158495160,8.35,142.52,142.48,3.96131802]
[1642158495358,2.807,142.51,142.48,3.96131802]
[1642158495558,10.5324,142.5,142.48,3.96131802]
[1642158495758,10.5324,142.5,142.47,0.35081545]
[1642158497761,10.7924,142.5,142.47,0.35081545]
[1642158498161,11.157,142.49,142.47,0.35081545]
[1642158498359,10.5344,142.48,142.47,0.35081545]
[1642158498559,10.5344,142.48,142.42,3.96131802]
[1642158499159,20.58517588,142.48,142.42,3.96131802]
[1642158499460,20.58517588,142.48,142.41,3.96131802]
[1642158499762,10.5375,142.44,142.41,3.96131802]
[1642158499959,2.807,142.43,142.41,3.96131802]
[1642158500159,8.35,142.42,142.41,3.96131802]
[1642158500560,10.05077588,142.42,142.38,3.96131802]
[1642158500764,8.35,142.42,142.38,3.96131802]
[1642158501165,18.8883,142.42,142.38,3.96131802]
[1642158501963,18.8883,142.42,142.35,3.96131802]
[1642158502163,18.8883,142.42,142.35,9.96131802]
[1642158502391,18.8883,142.42,142.35,3.96131802]
[1642158502562,18.8883,142.42,142.35,9.96131802]
[1642158503164,10.5383,142.42,142.35,3.96131802]
[1642158503362,10.05077588,142.41,142.37,3.96131802]
[1642158503565,10.5415,142.39,142.37,3.96131802]
[1642158503765,33.35,142.38,142.37,3.96131802]
[1642158504165,8.35,142.38,142.37,3.96131802]
[1642158504367,10.05077588,142.38,142.32,6.00632905]
[1642158504666,23.40167588,142.38,142.33,4.02237876]
[1642158505667,23.40167588,142.38,142.3,6.00632905]
[1642158505867,18.8919,142.38,142.3,6.0]
[1642158506067,18.8919,142.38,142.29,35.12299316]
[1642158506268,8.35,142.38,142.3,2.81]
[1642158506470,8.35,142.38,142.3,8.81]
[1642158506871,8.35,142.38,142.3,16.85385159]
[1642158507074,8.35,142.38,142.3,13.54385159]
[1642158507272,2.81,142.37,142.3,8.04385159]
[1642158507473,8.35,142.36,142.3,8.04385159]
[1642158507673,10.05077588,142.36,142.3,8.04385159]
[1642158507871,10.05077588,142.36,142.31,4.02301854]
[1642158508373,60.0,142.33,142.24,2.81]
[1642158508574,71.54077588,142.31,142.23,0.07962902]
[1642158508773,11.161,142.3,142.23,0.07962902]
[1642158508973,11.161,142.3,142.23,8.12641173]
[1642158509172,8.35,142.3,142.23,8.12641173]
[1642158509372,8.35,142.3,142.24,26.46273859]
[1642158509373,10.5496,142.29,142.24,26.46273859]
[1642158509573,18.8996,142.29,142.24,26.46273859]
[1642158511097,35.1487,142.33,142.24,26.71273859]
[1642158511098,10.5437,142.31,142.24,26.71273859]
[1642158511297,8.35,142.33,142.25,2.811]
[1642158512098,10.5424,142.32,142.25,2.811]
[1642158512298,8.35,142.31,142.25,2.811]
[1642158512900,8.35,142.31,142.24,29.27373859]
[1642158513300,8.35,142.31,142.25,10.5424]
[1642158513501,8.35,142.37,142.27,31.08228579]
[1642158513703,8.35,142.39,142.28,2.81]
[1642158514103,8.35,142.39,142.28,9.06]
[1642158514302,8.35,142.39,142.3,28.73585984]
[1642158514502,8.35,142.42,142.31,2.81]
[1642158514702,8.35,142.44,142.31,2.81]
[1642158514902,8.35,142.44,142.31,78.9]
[1642158515101,2.81,142.46,142.32,8.35]
[1642158515301,545.08610654,142.48,142.33,25.22510588]
[1642158515501,545.08610654,142.48,142.33,31.47510588]
[1642158515704,8.35,142.48,142.33,101.06510588]
[1642158515902,13.3385,142.47,142.34,10.5355]
[1642158516304,13.3385,142.47,142.34,16.5355]
[1642158517105,13.3385,142.47,142.34,16.7855]
[1642158518409,13.5885,142.47,142.34,16.5355]
[1642158518610,10.5353,142.42,142.34,16.5355]
[1642158518910,10.5353,142.42,142.34,6.0]
[1642158519110,10.5353,142.42,142.33,22.41610588]
[1642158519312,10.7953,142.42,142.33,22.41610588]
[1642158519510,2.809,142.43,142.33,28.41610588]
[1642158519711,10.5334,142.45,142.34,2.809]
[1642158519912,10.5334,142.45,142.36,27.8686634]
[1642158520211,2.807,142.44,142.36,27.8686634]
[1642158520412,8.25,142.46,142.36,27.8686634]
[1642158520413,2.807,142.45,142.36,27.8686634]
[1642158520814,10.5337,142.44,142.36,27.8686634]
[1642158521416,0.26,142.45,142.37,69.84]
[1642158521612,0.26,142.45,142.37,72.647]
[1642158521813,2.567,142.49,142.37,72.897]
[1642158522614,10.5328,142.46,142.4,27.41560837]
[1642158522814,4.26777588,142.49,142.4,27.41560837]
[1642158523514,2.567,142.49,142.4,37.94710837]
[1642158523714,2.567,142.49,142.4,107.78710837]
[1642158523915,2.567,142.49,142.4,108.03710837]
[1642158524316,2.807,142.51,142.4,108.03710837]
[1642158525316,13.3356,142.51,142.4,114.03710837]
[1642158525518,2.807,142.52,142.45,10.5277]
[1642158525717,2.807,142.53,142.46,26.1028214]
[1642158526517,2.807,142.53,142.46,36.6299214]
[1642158527318,2.807,142.57,142.47,69.84]
[1642158527518,2.806,142.59,142.47,48.0449]
[1642158527718,43.4277,142.62,142.51,10.5234]
[1642158528019,2.806,142.61,142.52,29.34644076]
[1642158528421,10.522,142.6,142.52,29.34644076]
[1642158529622,10.522,142.6,142.52,39.86904076]
[1642158530724,10.5214,142.61,142.52,40.11904076]